fUSD/lending_fUSD_20240709
["ID","MTS","AMOUNT","RATE_DAILY","PERIOD"]
[331572246,1720525838565,-423.38968133,0.00013771,2]
[331572247,1720525838576,-1842.54409138,0.0001379,2]
[331572248,1720525838586,-210.77020957,0.0001379,2]
[331572249,1720525838596,-5765.49589185,0.00013797,2]
[331572251,1720525838606,-500.0,0.00013799,2]
[331572252,1720525838615,-500.0,0.00013799,2]
[331572253,1720525838625,-490.69236357,0.00013799,2]
[331572254,1720525838634,-500.0,0.00013799,2]
[331572256,1720525838643,-500.0,0.00013799,2]
[331572258,1720525838653,-280.6834284,0.00013799,2]
[331572260,1720525838664,-500.0,0.00013799,2]
[331572262,1720525838673,-500.0,0.00013799,2]
[331572264,1720525838683,-288.92826619,0.00013799,2]
[331572266,1720525838692,-263.49894691,0.00013799,2]
[331572268,1720525838702,-342.45158406,0.00013799,2]
[331572270,1720525838710,-342.45158402,0.00013799,2]
[331572272,1720525838719,-544310.2598535,0.000138,2]
[331572278,1720525838766,-5243.22356511,0.000138,2]
[331572289,1720525838869,-31470.41578098,0.000138,2]
[331572292,1720525838880,-816.70025,0.000138,2]
[331572294,1720525838891,-2307.51909693,0.000138,2]
[331572335,1720525839301,-598.0,0.000138,2]
[331572337,1720525839322,-282.29603429,0.000138,2]
[331572340,1720525839334,-40460.0,0.000138,2]
[331572342,1720525839351,-652.16989619,0.000138,2]
[331572344,1720525839364,-600.68898,0.000138,2]
[331572347,1720525839376,-417.84487201,0.000138,2]
[331572349,1720525839389,-1915.37295685,0.000138,2]
[331572351,1720525839401,-409934.18791366,0.000138,2]
[331572353,1720525839414,-531.79482725,0.000138,2]
[331572355,1720525839427,-926.19145022,0.000138,2]
[331572369,1720525840390,-1043.21965598,0.000138,2]
[331572370,1720525840449,-21922.23458186,0.000138,2]
[331572371,1720525840506,-2752.35,0.000138,2]
[331572372,1720525840518,-496.46245175,0.000138,2]
[331572373,1720525840566,-676.47483956,0.000138,2]
[331572374,1720525840578,-345.76368734,0.000138,2]
[331572375,1720525840624,-1283.9577871,0.000138,2]
[331572642,1720525843375,-190.785,0.000137,2]
[331572644,1720525843385,-830.90695202,0.000138,2]
[331572646,1720525843396,-559.3204607,0.000138,2]
[331572648,1720525843407,-3953.81927455,0.000138,2]
[331572651,1720525843431,-10397.62039256,0.000138,2]
[331572669,1720525844065,-4853.45619711,0.000138,2]
[331572670,1720525844081,-490.81734235,0.000138,2]
[331572671,1720525844092,-1262.10257877,0.000138,2]
[331572672,1720525844103,-1200.0,0.000138,2]
[331572673,1720525844122,-917.65190741,0.000138,2]
[331572674,1720525844133,-5993.96581954,0.000138,2]
[331572675,1720525844145,-1126.43968259,0.000138,2]
[331572676,1720525844156,-498.7999998,0.000138,2]
[331572677,1720525844168,-4650.0,0.000138,2]
[331572682,1720525846449,-673.46432981,0.000138,2]
[331572683,1720525846461,-15734.435,0.000138,2]
[331572684,1720525846507,-978.20721649,0.000138,2]
[331572685,1720525846622,-3037.32432357,0.000138,2]
[331572688,1720526227104,476.68989804,0.00011199,2]
[331572689,1720526243489,294.66,0.00010849,2]
[331572690,1720526431571,524.57681731,0.00011199,2]
[331572691,1720526490383,202.56563726,0.00011199,2]
[331572692,1720526559884,205.52703871,0.00011199,2]
[331572693,1720526606911,209.03096185,0.00011199,2]
[331572694,1720526621974,155.45542142,0.00011199,2]
[331572695,1720526634200,18795.719944,0.00011199,2]
[331572697,1720526646882,7526.96592911,0.00011199,2]
[331572698,1720526651564,473196.77370778,0.00011199,2]
[331572699,1720526651716,412.55138748,0.00011199,2]
[331572700,1720526656618,155.0,0.00011199,2]
[331572701,1720526658421,181.56295293,0.00011199,2]
[331572702,1720526661897,188.04745964,0.00011199,2]
[331572703,1720526666850,553.07615953,0.00011199,2]
[331572704,1720526677852,2563.22715082,0.00011199,2]
[331572705,1720526689266,290.66575246,0.00011199,2]
[331572706,1720526691381,5389.19186288,0.00011199,2]
[331572707,1720526734565,155.0,0.00011199,2]
[331572716,1720526747864,553.19201684,0.00011199,2]
[331572717,1720526753733,450.0,0.00011199,2]
[331572718,1720526758430,156.49636207,0.00011199,2]
[331572719,1720526763852,1007.61514255,0.00011199,2]
[331572721,1720526777292,290.46265469,0.00011199,2]
[331572745,1720526842368,1367.85944293,0.00011199,2]
[331572746,1720526850868,552.96030222,0.00011199,2]
[331572747,1720526866201,155.0,0.00011199,2]
[331572748,1720526911279,1071.24766976,0.00011199,2]
[331572749,1720526920388,5389.19186288,0.00011199,2]
[331572750,1720526937084,296.03,0.00010636,2]
[331572751,1720526969812,1344.19139935,0.00011199,2]
[331572752,1720526986974,1493.8618116,0.00011199,2]
[331572753,1720527005909,222.36816248,0.00011199,2]
[331572754,1720527029577,159.39218237,0.00011199,2]
[331572769,1720527031536,-600.0,0.00012314,2]
[331572770,1720527031546,-151.13517006,0.00012403,2]
[331572771,1720527031555,-119.60009757,0.00012543,2]
[331572772,1720527031567,-130.39990243,0.00012543,2]
[331572773,1720527031580,-250.0,0.00012547,2]
[331572774,1720527031589,-300.0,0.0001255,2]
[331572775,1720527031598,-10844.80009757,0.00012551,2]
[331572776,1720527031610,-2677.3804161,0.00012551,2]
[331572777,1720527031622,-4281.9081366,0.00012551,2]
[331572778,1720527031633,-4443.51873846,0.00012551,2]
[331572779,1720527031644,-423.56713528,0.00012551,2]
[331572780,1720527031657,-428.50547599,0.00012551,2]
[331572781,1720527031666,-600.0,0.00012669,2]
[331572782,1720527031675,-208.92,0.00012751,2]
[331572783,1720527031683,-168.86,0.00012775,2]
[331572784,1720527031693,-35.72673635,0.000128,2]
[331572785,1720527031704,-383.63326365,0.000128,2]
[331572786,1720527031714,-968.92161463,0.00012892,2]
[331572787,1720527031723,-296.03,0.000129,2]
[331572788,1720527031732,-1083.19757908,0.00013128,2]
[331572789,1720527031741,-188.85,0.00013255,2]
[331572790,1720527031751,-3206.59554264,0.00013256,2]
[331572793,1720527032805,-5695.5,0.00013256,2]
[331572794,1720527032818,-1180.74374656,0.00013256,2]
[331572796,1720527032829,-351.56071379,0.00013256,2]
[331572798,1720527032840,-544.0998858,0.00013256,2]
[331572812,1720527037564,-17281.50011121,0.00013256,2]
[331572813,1720527037577,-1643.3148,0.00013263,2]
[331572814,1720527037588,-555.8,0.00013263,2]
[331572815,1720527037598,-854.79,0.000133,2]
[331572816,1720527037608,-419.36,0.000133,2]
[331572817,1720527037619,-854.79,0.000133,2]
[331572818,1720527037629,-419.36,0.000133,2]
[331572819,1720527037638,-854.79,0.000133,2]
[331572820,1720527037647,-419.36,0.000133,2]
[331572821,1720527037659,-400.0,0.00013363,2]
[331572822,1720527037668,-854.79,0.000134,2]
[331572823,1720527037678,-419.36,0.000134,2]
[331572824,1720527037688,-854.79,0.000134,2]
[331572825,1720527037698,-419.36,0.000134,2]
[331572826,1720527037707,-854.79,0.000134,2]
[331572827,1720527037717,-419.36,0.000134,2]
[331572828,1720527037726,-854.79,0.000134,2]
[331572829,1720527037735,-619.0,0.0001342,2]
[331572830,1720527037745,-443.624,0.0001342,2]
[331572831,1720527037755,-809.0,0.0001342,2]
[331572832,1720527037765,-365.432,0.0001342,2]
[331572833,1720527037774,-283.0,0.0001342,2]
[331572834,1720527037783,-390.573,0.0001342,2]
[331572835,1720527037793,-395.30066915,0.00013456,2]
[331572836,1720527037802,-155.68522468,0.00013472,2]
[331572837,1720527037811,-544.54505378,0.00013472,2]
[331572838,1720527037821,-254.34908601,0.00013472,2]
[331572839,1720527037830,-4774.69955578,0.00013472,2]
[331572840,1720527037840,-2015.6022,0.000135,2]
[331572841,1720527037849,-155.0,0.00013516,2]
[331572842,1720527037859,-267.65376377,0.00013516,2]
[331572844,1720527037868,-756.66831365,0.00013543,2]
[331572846,1720527037877,-841.3694,0.00013568,2]
[331572848,1720527037887,-2032.965,0.00013574,2]
[331572850,1720527037896,-300.51199197,0.00013574,2]
[331572852,1720527037905,-10127.29136445,0.00013574,2]
[331572854,1720527037915,-1000.5538524,0.00013574,2]
[331572856,1720527037925,-684.75373736,0.00013574,2]
[331572858,1720527037934,-673.87987828,0.00013659,2]
[331572860,1720527037943,-419.36,0.00013668,2]
[331572862,1720527037952,-705.03,0.00013668,2]
[331572864,1720527037961,-416.57,0.00013699,2]
[331572866,1720527037971,-1080.27,0.00013699,2]
[331572868,1720527037981,-250.0,0.00013699,2]
[331572870,1720527037991,-150.0,0.000137,2]
[331572872,1720527038001,-19279.9562,0.000137,2]
[331572874,1720527038010,-317.65,0.000137,2]
[331572876,1720527038019,-1830.0,0.000137,2]
[331572879,1720527038029,-1659.0,0.000137,2]
[331572881,1720527038049,-1251.0,0.000137,2]
[331572883,1720527038058,-449.0,0.000137,2]
[331572886,1720527038068,-846.75991849,0.000137,2]
[331572887,1720527038077,-665.24308001,0.000137,2]
[331572888,1720527038086,-319.75791783,0.000137,2]
[331572889,1720527038096,-964.28319421,0.000137,2]
[331572890,1720527038105,-258.95334288,0.000137,2]
[331572891,1720527038115,-188.88739323,0.00013711,2]
[331572892,1720527038125,-163.80231513,0.00013715,2]
[331572893,1720527038134,-665.24307999,0.00013729,2]
[331572894,1720527038144,-1693.48899931,0.00013736,2]
[331572895,1720527038153,-665.24307999,0.00013757,2]
[331572896,1720527038163,-420.0,0.00013769,2]
[331572897,1720527038173,-665.24307999,0.00013786,2]
[331572898,1720527038183,-1658.2896823,0.0001379,2]
[331572899,1720527038192,-220.8553415,0.00013799,2]
[331572900,1720527038202,-273.96126727,0.00013799,2]
[331572901,1720527038212,-566.0,0.000138,2]
[331572902,1720527038222,-403542.1761864,0.000138,2]
[331572903,1720527038235,-94956.43627235,0.000138,2]
[331572904,1720527038248,-13561.76674717,0.000138,2]
[331572905,1720527038259,-3414.75,0.000138,2]
[331572906,1720527038275,-350.5144272,0.000138,2]
[331572907,1720527038288,-1632.3621893,0.000138,2]
[331572908,1720527038300,-3090.4703999,0.000138,2]
[331572913,1720527040772,-21148.61220765,0.000138,2]
[331573143,1720527042994,-3026.11595785,0.000138,2]
[331573144,1720527043277,-541835.35264046,0.000138,2]
[331573145,1720527043292,-28504.50106015,0.000138,2]
[331573146,1720527043303,-802.22733,0.000138,2]
[331573147,1720527043314,-8068.01325135,0.000138,2]
[331573148,1720527043326,-680.84002523,0.000138,2]
[331573149,1720527043338,-8783.19619374,0.000138,2]
[331573150,1720527043350,-1310.01098762,0.000138,2]
[331573151,1720527043361,-19806.34964143,0.000138,2]
[331573152,1720527043372,-285.43780332,0.000138,2]
[331573171,1720527044433,-6715.14982374,0.000138,2]
[331573172,1720527044445,-1224.5387,0.000138,2]
[331573173,1720527044456,-1738.02113,0.000138,2]
[331573177,1720527045680,-913.46546443,0.000138,2]
[331573178,1720527045737,-1383.975,0.000138,2]
[331573179,1720527045749,-2205.695,0.000138,2]
[331573180,1720527045762,-6362.28804746,0.000138,2]
[331573181,1720527045774,-2136.53960588,0.000138,2]
[331573182,1720527045862,-522.23783259,0.000138,2]
[331573183,1720527046912,-2223.68727233,0.000138,2]
[331573184,1720527046926,-4968.14676485,0.000138,2]
[331573186,1720527211005,150.0,0.00010302,2]
[331573189,1720527339808,756.66831365,0.00011199,2]
[331573194,1720527424336,655.29377485,0.00011199,2]
[331573195,1720527424367,64.50606196,0.00011199,2]
[331573196,1720527454856,356.38582122,0.00011199,2]
[331573197,1720527491010,155.0,0.00011199,2]
[331573198,1720527503233,40.76985305,0.00011199,2]
[331573199,1720527503263,114.23014695,0.00011199,2]
[331573200,1720527519642,266.42,0.00010848,2]
[331573201,1720527675347,749.83155854,0.00011199,2]
[331573202,1720527682462,517.874,0.00011199,2]
[331573205,1720527691243,155.9677618,0.00011199,2]
[331573207,1720527712467,517.874,0.00011199,2]
[331573208,1720527722418,627.40372994,0.00011199,2]
[331573209,1720527741818,538.67576432,0.00011199,2]
[331573210,1720527796390,344.35398415,0.00011199,2]
[331573214,1720527831777,5.36992971,0.00011199,2]
[331573215,1720527831810,221.90135968,0.00011199,2]
[331573216,1720527873974,424.94216003,0.00011199,2]
[331573218,1720527908442,202.95876181,0.00011199,2]
[331573236,1720528074632,253.09,0.00010637,2]
[331573237,1720528089350,459.03935982,0.00011199,2]
[331573238,1720528089834,3917.33582599,0.00011199,2]
[331573239,1720528089859,1237.32470938,0.00011199,2]
[331573240,1720528117712,184702.06207968,0.00011199,2]
[331573241,1720528119978,9475.36501493,0.00011199,2]
[331573242,1720528121400,1184.74117863,0.00011199,2]
[331573243,1720528134357,634.25462218,0.00011199,2]
[331573244,1720528152963,517.874,0.00011199,2]
[331573245,1720528164792,366.08756345,0.00011199,2]
[331573246,1720528211953,839.75323891,0.00011199,2]
[331573247,1720528212008,155.0,0.00011199,2]
[331573251,1720528231697,-329.0,0.00012301,2]
[331573252,1720528231707,-155.0,0.00012302,2]
[331573253,1720528231716,-227.27128939,0.00012302,2]
[331573254,1720528231725,-424.94216003,0.00012314,2]
[331573255,1720528231735,-250.0,0.00012564,2]
[331573256,1720528231745,-300.0,0.00012582,2]
[331573257,1720528231756,-101.47976752,0.00012583,2]
[331573263,1720528232851,-23788.52023248,0.00012583,2]
[331573264,1720528232862,-3151.41919843,0.00012584,2]
[331573265,1720528232872,-167.13,0.00012669,2]
[331573266,1720528232882,-250.0,0.00012713,2]
[331573267,1720528232892,-168.86,0.00012843,2]
[331573268,1720528232901,-166.21,0.00012846,2]
[331573269,1720528232911,-999.99,0.00012846,2]
[331573270,1720528232921,-118.47056909,0.00012866,2]
[331573271,1720528232990,-381.51943091,0.00012866,2]
[331573272,1720528232999,-253.09,0.00012901,2]
[331573273,1720528233009,-1000.0,0.00012903,2]
[331573274,1720528233033,-2380.0,0.00012992,2]
[331573275,1720528233042,-193.85231866,0.00013128,2]
[331573276,1720528233051,-150.0,0.00013178,2]
[331573277,1720528233061,-419.36,0.000132,2]
[331573278,1720528233070,-352.53,0.000132,2]
[331573279,1720528233079,-1074.865,0.000134,2]
[331573280,1720528233090,-119.37404982,0.00013516,2]
[331573281,1720528233102,-1668.31916712,0.00013516,2]
[331573282,1720528233112,-5565.21776114,0.00013574,2]
[331573283,1720528233122,-2378.93432536,0.00013574,2]
[331573284,1720528233132,-5565.21776114,0.00013574,2]
[331573285,1720528233142,-1367.58779488,0.00013574,2]
[331573286,1720528233152,-517.874,0.00013574,2]
[331573287,1720528233161,-179.836,0.0001368,2]
[331573288,1720528233170,-1830.0,0.0001368,2]
[331573289,1720528233179,-2975.72476623,0.0001368,2]
[331573290,1720528233191,-484.55762474,0.0001368,2]
[331573304,1720528237885,-525.233,0.000134,2]
[331573305,1720528237895,-1718.71760903,0.0001368,2]
[331573306,1720528237905,-291.0,0.0001368,2]
[331573307,1720528237914,-1339.842,0.0001368,2]
[331573308,1720528237924,-1141.20739097,0.0001368,2]
[331573309,1720528237952,-4671.79260903,0.0001368,2]
[331573310,1720528237962,-3000.0,0.0001369,2]
[331573311,1720528237972,-208.28,0.00013699,2]
[331573312,1720528237982,-1000.0,0.000137,2]
[331573313,1720528237991,-447.7161,0.000137,2]
[331573314,1720528238000,-163.80231512,0.000137,2]
[331573315,1720528238009,-2500.0,0.000137,2]
[331573316,1720528238024,-319.75791781,0.000137,2]
[331573317,1720528238041,-3000.0,0.0001376,2]
[331573318,1720528238055,-9511.01401381,0.0001379,2]
[331573319,1720528238065,-1492.46071407,0.0001379,2]
[331573320,1720528238075,-3918.67348824,0.00013799,2]
[331573321,1720528238085,-246.56514057,0.00013799,2]
[331573322,1720528238094,-175574.56943256,0.000138,2]
[331573323,1720528238107,-575.97966,0.000138,2]
[331573335,1720528239752,-3008.08311096,0.000138,2]
[331573336,1720528239765,-2318.9879,0.000138,2]
[331573337,1720528239881,-1086.34670665,0.000138,2]
[331573338,1720528239954,-394.6158734,0.000138,2]
[331573339,1720528240025,-1604.46511187,0.000138,2]
[331573401,1720528240696,155.0,0.00011199,2]
[331573512,1720528242816,-1665.0,0.000134,2]
[331573513,1720528242826,-275.65832042,0.000138,2]
[331573519,1720528244089,-317359.15635219,0.000138,2]
[331573520,1720528244107,-267254.66277744,0.000138,2]
[331573544,1720528246493,-597.92187238,0.000138,2]
[331573545,1720528246508,-870.66039763,0.000138,2]
[331573546,1720528246520,-776.31930374,0.000138,2]
[331573547,1720528246532,-922.26269289,0.000138,2]
[331573548,1720528246544,-5591.80383644,0.000138,2]
[331573553,1720528405517,425.00794853,0.00011199,2]
[331573554,1720528427259,1497.83231752,0.00011199,2]
[331573555,1720528427291,3556.42720128,0.00011199,2]
[331573556,1720528427316,2619.31125604,0.00011199,2]
[331573557,1720528438155,10225.28715581,0.00011199,2]
[331573558,1720528469848,4436.758931,6.94e-05,2]
[331573559,1720528487204,2378.93432536,0.00011199,2]
[331573560,1720528524265,1903.65279599,0.00011199,2]
[331573561,1720528527131,957.15649194,0.00011199,2]
[331573562,1720528604018,517.874,0.00011199,2]
[331573563,1720528630841,262.34,0.00010646,2]
[331573565,1720528664719,155.0,0.00011199,2]
[331573566,1720528698292,263.76477357,0.00011199,2]
[331573568,1720528775696,146369.21188221,0.00011199,2]
[331573569,1720528822735,625.93982827,0.00011199,2]
[331573570,1720528824046,16122.5261197,0.00011199,2]
[331573571,1720528845154,17891.15478924,0.00011199,2]
[331573581,1720528984425,517.874,0.00011199,2]
[331573583,1720529078875,9744.51773864,0.00011199,2]
[331573585,1720529150943,305.97,0.00010568,2]
[331573597,1720529332719,496314.20631698,0.00010568,2]
[331573598,1720529340855,932.16995171,0.00011199,2]
[331573639,1720529390361,-206.0,0.00011259,2]
[331573640,1720529390393,-300.0,0.00011259,2]
[331573642,1720529390426,-500.0,0.0001126,2]
[331573644,1720529390461,-343.15218524,0.0001126,2]
[331573645,1720529402873,630.9361337,0.00011199,2]
[331573646,1720529413253,521.94426828,0.00011199,2]
[331573647,1720529420618,24730.9616406,0.00011199,2]
[331573648,1720529421239,496211.98361742,0.00011199,2]
[331573649,1720529424536,5603.41953432,0.00011199,2]
[331573650,1720529425449,155.07107237,0.00011199,2]
[331573651,1720529430698,485.00132535,0.00011199,2]
[331573656,1720529432868,-553.85044682,0.0001126,2]
[331573657,1720529432880,-897.95,0.0001126,2]
[331573658,1720529432892,-474.37904849,0.0001126,2]
[331573659,1720529432904,-530.66831945,0.0001126,2]
[331573660,1720529432914,-495.72992148,0.0001126,2]
[331573661,1720529432926,-604.27007852,0.0001126,2]
[331573662,1720529432935,-742.5170213,0.0001126,2]
[331573663,1720529432946,-710.59577829,0.0001126,2]
[331573664,1720529432958,-1246.88720041,0.0001126,2]
[331573666,1720529432968,-906.40983597,0.000118,2]
[331573668,1720529432978,-404.0,0.0001182,2]
[331573670,1720529432988,-2800.0,0.00012082,2]
[331573671,1720529432997,-1100.0,0.00012082,2]
[331573672,1720529433006,-2700.0,0.00012082,2]
[331573673,1720529433016,-196.20443442,0.00012273,2]
[331573674,1720529433025,-202.8209654,0.00012273,2]
[331573675,1720529433034,-366.11090361,0.00012273,2]
[331573676,1720529433043,-155.0,0.00012273,2]
[331573677,1720529433053,-155.52865028,0.00012273,2]
[331573678,1720529433062,-156.67050622,0.00012302,2]
[331573679,1720529433072,-517.874,0.00012302,2]
[331573680,1720529433082,-157.5996525,0.00012302,2]
[331573681,1720529433091,-150.0,0.00012434,2]
[331573682,1720529433100,-1000.0,0.00012435,2]
[331573683,1720529433109,-289.59,0.00012451,2]
[331573684,1720529433119,-250.0,0.00012455,2]
[331573685,1720529433514,-250.0,0.00012455,2]
[331573686,1720529433557,-9969.58,0.00012461,2]
[331573687,1720529433567,-166.21,0.00012477,2]
[331573688,1720529433576,-588.84694025,0.0001251,2]
[331573689,1720529433586,-150.0,0.000126,2]
[331573690,1720529433595,-11307.77956285,0.00012809,2]
[331573691,1720529433607,-7634.89768322,0.00012809,2]
[331573692,1720529433617,-2363.80938682,0.00012809,2]
[331573693,1720529433627,-299.99,0.0001282,2]
[331573694,1720529433636,-499.99,0.0001282,2]
[331573695,1720529433645,-305.97,0.00012832,2]
[331573696,1720529433655,-500.0,0.00012904,2]
[331573697,1720529433664,-2800.0,0.00012904,2]
[331573698,1720529433674,-1100.0,0.00012904,2]
[331573699,1720529433683,-2700.0,0.00012904,2]
[331573700,1720529433694,-186.7,0.00013033,2]
[331573701,1720529433705,-979.55417132,0.0001305,2]
[331573702,1720529433715,-756.53960123,0.00013063,2]
[331573703,1720529433725,-155.0,0.00013128,2]
[331573704,1720529433734,-403.41,0.00013178,2]
[331573705,1720529433748,-424.66,0.00013278,2]
[331573706,1720529433758,-150.0,0.00013278,2]
[331573707,1720529433768,-424.66,0.00013278,2]
[331573708,1720529433778,-424.66,0.00013278,2]
[331573709,1720529433788,-424.66,0.00013278,2]
[331573710,1720529433798,-424.66,0.00013278,2]
[331573711,1720529433807,-424.66,0.00013278,2]
[331573712,1720529433817,-424.66,0.00013278,2]
[331573713,1720529433827,-424.66,0.00013278,2]
[331573714,1720529433838,-344.0,0.0001334,2]
[331573715,1720529433847,-424.55,0.0001337,2]
[331573716,1720529433858,-5388.63012999,0.00013574,2]
[331573717,1720529433869,-413.37996369,0.00013574,2]
[331573718,1720529433879,-5547.90532556,0.00013574,2]
[331573719,1720529433890,-2141.41153898,0.00013574,2]
[331573720,1720529433900,-9245.81170707,0.00013574,2]
[331573721,1720529433910,-24280.03283902,0.0001358,2]
[331573722,1720529433923,-482.99531256,0.0001358,2]
[331573723,1720529433935,-412.06019932,0.0001358,2]
[331573724,1720529433946,-614.51,0.0001358,2]
[331573725,1720529433958,-638.68830435,0.0001358,2]
[331573726,1720529433970,-318.04681696,0.0001358,2]
[331573727,1720529433979,-164.82995942,0.00013587,2]
[331573728,1720529433995,-8.68004058,0.00013587,2]
[331573729,1720529434005,-1830.0,0.0001366,2]
[331573730,1720529434014,-1653.67084,0.0001366,2]
[331573731,1720529434023,-500.0,0.00013689,2]
[331573732,1720529434032,-500.0,0.0001369,2]
[331573733,1720529434044,-200.0,0.00013699,2]
[331573734,1720529434054,-207.83,0.00013699,2]
[331573735,1720529434063,-2482.19584442,0.000137,2]
[331573736,1720529434074,-12971.06305336,0.000137,2]
[331573737,1720529434169,19635.66998029,0.00011199,2]
[331573740,1720529437951,-1361.4051465,0.00013574,2]
[331573741,1720529437961,-31244.00490222,0.000137,2]
[331573742,1720529437971,-2609.7595,0.000137,2]
[331573743,1720529437981,-6866.667,0.000137,2]
[331573744,1720529437990,-2279.7157,0.000137,2]
[331573745,1720529438002,-4492.5142,0.000137,2]
[331573746,1720529438011,-164.18775838,0.000137,2]
[331573747,1720529438021,-5104.7324,0.000137,2]
[331573748,1720529438030,-173.03102793,0.000137,2]
[331573749,1720529438039,-2800.0,0.00013726,2]
[331573750,1720529438048,-1100.0,0.00013726,2]
[331573751,1720529438058,-2700.0,0.00013726,2]
[331573752,1720529438067,-221.90862645,0.00013799,2]
[331573753,1720529438076,-221.90862643,0.00013799,2]
[331573754,1720529438086,-679.0,0.000138,2]
[331573755,1720529438096,-112832.10196979,0.000138,2]
[331573756,1720529438125,-129053.06715688,0.000138,2]
[331573757,1720529438139,-162961.55800191,0.000138,2]
[331573758,1720529438155,-1374.7667779,0.000138,2]
[331573759,1720529438168,-1149.45034,0.000138,2]
[331573760,1720529438182,-186918.74358764,0.000138,2]
[331573907,1720529440453,-240377.62636177,0.000138,2]
[331573908,1720529440950,-349.39260552,0.000138,2]
[331573909,1720529440990,-727.40483639,0.000138,2]
[331573910,1720529441004,-373.56120012,0.000138,2]
[331573911,1720529441015,-617.72499997,0.000138,2]
[331573912,1720529441357,-643.23488832,0.000138,2]
[331573947,1720529443070,-3229.22783679,0.000138,2]
[331573948,1720529443082,-1668.02297108,0.000138,2]
[331573951,1720529443134,-116160.2851971,0.000138,2]
[331573952,1720529443143,-2000.0,0.000138,2]
[331573953,1720529443152,-200.0,0.000138,2]
[331573954,1720529443161,-2500.0,0.000138,2]
[331573955,1720529443170,-767.47924399,0.000138,2]
[331573956,1720529443179,-2000.0,0.000138,2]
[331573957,1720529443189,-200.0,0.000138,2]
[331573958,1720529443198,-2000.0,0.000138,2]
[331573959,1720529443208,-200.0,0.000138,2]
[331573960,1720529443218,-200.0,0.000138,2]
[331573961,1720529443227,-184.44926284,0.00013879,2]
[331573962,1720529443238,-500.0,0.00013879,2]
[331573963,1720529443248,-500.0,0.00013879,2]
[331573964,1720529443258,-393.4846545,0.00013879,2]
[331573965,1720529443268,-162382.20246748,0.0001388,2]
[331573966,1720529443285,-1864.74812184,0.0001388,2]
[331573967,1720529443297,-3819.34239537,0.0001388,2]
[331573968,1720529443308,-5579.18028061,0.0001388,2]
[331573969,1720529443321,-3262.44251899,0.0001388,2]
[331573970,1720529443333,-579.35,0.0001388,2]
[331573971,1720529443349,-12973.483531,0.0001388,2]
[331573973,1720529444885,-232443.88490656,0.0001388,2]
[331573974,1720529444894,-151.0,0.0001388,2]
[331573975,1720529444904,-151.0,0.0001388,2]
[331573976,1720529444914,-221.90862643,0.00013889,2]
[331573977,1720529444923,-1569.71582154,0.00013899,2]
[331573978,1720529444933,-345.25532143,0.000139,2]
[331573979,1720529444943,-2000.0,0.00013938,2]
[331573980,1720529444953,-200.0,0.00013938,2]
[331573981,1720529444965,-200.0,0.00013938,2]
[331573982,1720529444975,-2000.0,0.00013938,2]
[331573983,1720529444985,-200.0,0.00013938,2]
[331573984,1720529444995,-355.08,0.00013942,2]
[331573985,1720529445006,-1000.0,0.00013989,2]
[331573986,1720529445016,-392.9389252,0.0001399,2]
[331573987,1720529445026,-392.9389252,0.0001399,2]
[331573988,1720529445035,-392.9389252,0.0001399,2]
[331573989,1720529445046,-392.9389252,0.0001399,2]
[331573990,1720529445055,-392.9389252,0.0001399,2]
[331573991,1720529445065,-800.3990419,0.0001399,2]
[331573992,1720529445075,-800.3990419,0.0001399,2]
[331573993,1720529445084,-800.3990419,0.0001399,2]
[331573994,1720529445094,-800.3990419,0.0001399,2]
[331573995,1720529445103,-800.3990419,0.0001399,2]
[331573996,1720529445113,-150.03493955,0.0001399,2]